Cogmind - Beta 9.6 @@@ ROGUE MODE // 2020.06.07 @ 21:30:35 Player: bugsniper Result: Destroyed by D-53 Grenadier with Mini Grenade Launcher Performance ------------- Evolutions (0) 0 Regions Visited (2) 400 Robots Destroyed (23) 115 Value Destroyed (548) 548 Prototype IDs (2) 40 Alien Tech Used (0) 0 Bonus (0) 0 TOTAL SCORE: 1103 Bonus ------- None Cogmind --------- Core Integrity 0/250 Matter 196/300 Energy 88/100 System Corruption 5% Temperature Cool (0) Movement Treading (160) Location -10/Mines Parts ------- > --- POWER (1) -------- (None) > --- PROPULSION (2) --- Light Treads Light Treads > --- UTILITY (2) ------ Large Storage Unit > --- WEAPON (2) ------- Hammer > --- INVENTORY (10) --- Light Nuclear Core Light Treads Medium Storage Unit Grenade Launcher Peak State ------------ > --- POWER ------------ Ion Engine > --- PROPULSION ------- Light Treads Light Treads > --- UTILITY ---------- Improved Heat Sink Medium Storage Unit > --- WEAPON ----------- Particle Gun Assault Rifle > --- INVENTORY -------- Light Nuclear Core Light Treads Light Treads Light Treads Small Storage Unit Light Assault Rifle Grenade Launcher Hammer [Rating: 11] Favorites ----------- Power Ion Engine Engine Ion Engine Propulsion Aluminum Leg Treads Light Treads Leg Aluminum Leg Utility Improved Heat Sink Device Improved Heat Sink Storage Small Storage Unit Weapon Assault Rifle Energy Gun Particle Gun Ballistic Gun Assault Rifle Launcher Grenade Launcher Impact Weapon Hammer Build | -11 -10 -10 ------- Run | Scr Mat Min Slots Evolved . | . . . Power . | . . . Propulsion . | . . . Utility . | . . . Weapon . | . . . Parts Attached 27 | . 20 7 Power 2 | . 2 . Engine 2 | . 2 . Core . | . . . Reactor . | . . . Propulsion 7 | . 5 2 Treads 4 | . 2 2 Leg 3 | . 3 . Wheel . | . . . Hover . | . . . Flight . | . . . Utility 7 | . 7 . Device 3 | . 3 . Storage 4 | . 4 . Processor . | . . . Hackware . | . . . Protection . | . . . Artifact . | . . . Weapon 11 | . 6 5 Energy Gun 4 | . 3 1 Energy Cannon . | . . . Ballistic Gun 5 | . 3 2 Ballistic Cannon . | . . . Launcher 1 | . . 1 Special Weapon . | . . . Impact Weapon 1 | . . 1 Slashing Weapon . | . . . Piercing Weapon . | . . . Special Melee Weapon . | . . . Unidentified Prototypes . | . . . Parts Lost 11 | . 4 7 Power 1 | . . 1 Propulsion 2 | . . 2 Utility 2 | . 1 1 Weapon 6 | . 3 3 Highest Loss Streak 7 | . 2 7 Average Slot Usage (%) 98 | . 99 85 Engine 13 | . 14 8 Treads 13 | . 12 28 Leg 14 | . 15 . Device 12 | . 12 11 Storage 15 | . 15 14 Energy Gun 11 | . 11 5 Ballistic Gun 16 | . 16 14 Naked Turns . | . . . Heaviest Build 28 | 12 27 28 Greatest Support 40 | 20 40 40 Greatest Overweight (x) 1 | . 1 1 Average Overweight (x) . | . . . Largest Inventory Capacity 10 | . 10 10 Average Capacity 7 | . 7 10 Most Carried 8 | . 8 8 Average Carried 6 | . 6 6 Final Capacity 10 | 6 10 10 Final Carried 8 | 6 8 4 Class Distribution -------------------- 63% | Mutant 36% | Scavenger-Mutant Dominant Class ---------------- Mutant | -10/Materials Mutant | -10/Mines Resources | -11 -10 -10 ----------- Run | Scr Mat Min Matter Collected 515 | 200 315 . Remotely . | . . . Salvage Created 916 | . 904 12 Parts 42 | . 41 1 Haulers Intercepted 2 | . 2 . Recyclers Shooed 2 | . 2 . Parts Field Recycled . | . . . Retrieved Matter . | . . . Parts Self-Destructed . | . . . Prevented . | . . . Kills | -11 -10 -10 ------- Run | Scr Mat Min Combat Hostiles Destroyed 18 | . 16 2 Guns 16 | . 16 . AOE 2 | . . 2 Classes Destroyed 5 | . 5 . Worker 1 | . 1 . Hauler 2 | . 2 . Recycler 2 | . 2 . Swarmer 5 | . 3 2 Grunt 13 | . 13 . Best Kill Streak 5 | . 5 2 Combat Bots Only 4 | . 4 2 Max Kills in Single Turn 2 | . 1 2 Gunslinging . | . . . Exploded 2 | . . 2 Melee . | . . . Uniques/NPCs Destroyed . | . . . Combat | -11 -10 -10 -------- Run | Scr Mat Min Damage Taken 1493 | . 599 894 Core 280 | . 72 208 Absorbed by Shields . | . . . Core Remaining (%) 100 | 100 . . Volleys Fired 75 | . 65 10 Largest 2 | . 2 2 Hottest 90 | . 90 85 Shots Fired 137 | . 120 17 Gun 135 | . 120 15 Cannon . | . . . Launcher 2 | . . 2 Special . | . . . Kinetic 90 | . 80 10 Thermal 31 | . 26 5 Explosive 2 | . . 2 Electromagnetic 14 | . 14 . Robot Hit Streak 16 | . 13 16 Robot Miss Streak 4 | . 3 4 Penetration Max . | . . . Secondary Targets 2 | . 2 . Max Gunslinging Chain 1 | . 1 . Shots Hit Robots 97 | . 87 10 Core Hits 46 | . 42 4 Critical Hits . | . . . Critical Kills . | . . . Critical Parts Destroyed . | . . . Melee Attacks 1 | . . 1 Impact 1 | . . 1 Slashing . | . . . Piercing . | . . . Sneak Attacks . | . . . Combat Hostiles . | . . . Follow-up Attacks . | . . . Damage Inflicted 1170 | . 912 258 Guns 1022 | . 912 110 Cannons . | . . . Explosions 148 | . . 148 Melee . | . . . Ramming . | . . . Kinetic 598 | . 505 93 Thermal 252 | . 235 17 Explosive 148 | . . 148 Electromagnetic 172 | . 172 . Impact . | . . . Slashing . | . . . Piercing . | . . . Highest Corruption 5 | . . 5 Average Corruption 5 | . . 5 Corruption Purged . | . . . Effects 1 | . . 1 Message Errors 1 | . . 1 Overload Shots . | . . . Overflow Damage . | . . . Projectiles . | . . . Explosions . | . . . Melee . | . . . Knockbacks . | . . . Impact . | . . . Kinetic . | . . . Secondary . | . . . Self-Inflicted Damage 27 | . . 27 Shots 2 | . . 2 Rammed . | . . . Targets Rammed . | . . . Kicked . | . . . Crushed . | . . . Highest Temperature 426 | . 426 . Average Temperature 159 | . 159 . Received Heat Transfer 294 | . 294 . Effects 4 | . 4 . Shutdowns 1 | . 1 . Energy Bleed 1 | . 1 . Matter Decay 1 | . 1 . Short Circuit 1 | . 1 . Siege Activations . | . . . Robots Corrupted . | . . . Combat Hostiles . | . . . Parts Fried . | . . . Impact Corruptions . | . . . Robots Melted . | . . . Combat Hostiles . | . . . Parts Melted 1 | . 1 . Heat Transferred 656 | . 619 37 Parts Sabotaged . | . . . Parts Stolen . | . . . Parts Stripped . | . . . Power Chain Reactions . | . . . Missiles Intercepted . | . . . Alert | -11 -10 -10 ------- Run | Scr Mat Min Peak Influence 323 | . 323 124 Average Influence 201 | . 207 99 Maximum Alert Level 1 | . 1 . Low Security (%) 46 | . 43 100 Level 1 53 | . 56 . Level 2 . | . . . Level 3 . | . . . Level 4 . | . . . Level 5 . | . . . High Security . | . . . Max Security . | . . . Squads Dispatched 5 | . 5 . Investigation 4 | . 4 . Extermination . | . . . Reinforcement 1 | . 1 . Assault . | . . . Garrison . | . . . Intercept . | . . . Construction Impeded . | . . . Haulers Reinforced . | . . . Stealth | -11 -10 -10 --------- Run | Scr Mat Min Distress Signals 4 | . 4 . Communications Jammed . | . . . Distress Signals . | . . . Times Spotted 44 | . 29 15 Peak Tracking Total 11 | . 4 11 Tactical Retreats 1 | . 1 . Traps | -11 -10 -10 ------- Run | Scr Mat Min Traps Triggered 1 | . 1 . Indirectly . | . . . Trap Hack Attempts . | . . . Triggered . | . . . Disarmed . | . . . Reprogrammed . | . . . Reused . | . . . Traps Extracted . | . . . Installed . | . . . Triggered . | . . . Machines | -11 -10 -10 ---------- Run | Scr Mat Min Machines Disabled . | . . . Max in Single Turn . | . . . Machines Sabotaged . | . . . Garrisons Compromised . | . . . Overloaded Fab Kills . | . . . Fab Network Shutdowns . | . . . Hacking | -11 -10 -10 --------- Run | Scr Mat Min Machines Accessed 6 | . 6 . Terminals 4 | . 4 . Fabricators . | . . . Repair Stations . | . . . Recycling Units 2 | . 2 . Scanalyzers . | . . . Garrison Access . | . . . Total Hacks 12 | . 12 . Successful 6 | . 6 . Failed 6 | . 6 . Catastrophic . | . . . Database Lockouts . | . . . Manual 6 | . 6 . Terminals 10 | . 10 . Fabricators . | . . . Repair Stations . | . . . Recycling Units 2 | . 2 . Scanalyzers . | . . . Garrison Access . | . . . Terminal Hacks 4 | . 4 . Prototype ID Bank 1 | . 1 . Emergency Access Points 1 | . 1 . Maintenance Status 1 | . 1 . Zone Layout 1 | . 1 . Fabricator Hacks . | . . . Repair Station Hacks . | . . . Recycling Unit Hacks . | . . . Scanalyzer . | . . . Garrison Access Hacks . | . . . Unauthorized Hacks 2 | . 2 . Terminals . | . . . Fabricators . | . . . Repair Stations . | . . . Recycling Units 2 | . 2 . Tunnel 2 | . 2 . Scanalyzers . | . . . Garrison Access . | . . . Data Cores Recovered . | . . . Used . | . . . Hacking Detections 3 | . 3 . Full Trace Events 1 | . 1 . Feedback Events . | . . . Feedback Blocked . | . . . Robot Schematics Acquired . | . . . Robots Built . | . . . Matter . | . . . Time . | . . . Total Robot Build Rating . | . . . Part Schematics Acquired . | . . . Parts Built . | . . . Matter . | . . . Time . | . . . Total Part Build Rating . | . . . Parts Repaired . | . . . Time . | . . . Parts Recycled . | . . . Recycled Matter . | . . . Retrieved Matter . | . . . Retrieved Components . | . . . Parts Scanalyzed . | . . . Part Schematics Acquired . | . . . Parts Damaged . | . . . Bothacking | -11 -10 -10 ------------ Run | Scr Mat Min Used RIF Installer . | . . . Robots Hacked . | . . . Non-combat . | . . . Combat . | . . . Robot Hacks Applied . | . . . Relay Couplers Released . | . . . Robots Rewired . | . . . Allies Hacked . | . . . Hacks Repelled . | . . . Allies | -11 -10 -10 -------- Run | Scr Mat Min Total Allies . | . . . Largest Group . | . . . Highest-Rated Group . | . . . Highest-Rated Ally . | . . . Total Orders . | . . . Ally Attacks . | . . . Total Damage . | . . . Kills . | . . . Allies Corrupted . | . . . Allies Melted . | . . . Intel | -11 -10 -10 ------- Run | Scr Mat Min Robot Analysis Total . | . . . Derelict Logs Recovered . | . . . Drone Launches . | . . . Drone Recoveries . | . . . Exploration | -11 -10 -10 ------------- Run | Scr Mat Min Turns Passed 946 | . 897 49 Spaces Moved 479 | 1 471 7 Core . | . . . Treads 228 | . 221 7 Legs 251 | 1 250 . Wheels . | . . . Hover . | . . . Flight . | . . . Fastest Speed 120 | 120 120 160 Average Speed 139 | 120 138 162 Slowest Speed 180 | 120 160 180 Overloaded Moves . | . . . Propulsion Burnouts . | . . . Robots Hopped . | . . . Cave-ins Triggered 1 | . . 1 Exploration Rate (%) 24 | 2 64 7 Regions Visited 2 Branch Regions 1 Pre-discovered Areas 2 | . 2 . Known Exits Taken . | . . . Unknown Exits Taken 2 | 1 1 . Scrap Searched . | . . . Spaces Dug 13 | . . 13 Terrain Destroyed 13 | . . 13 Melee . | . . . Projectile . | . . . AOE 13 | . . 13 Actions | -11 -10 -10 --------- Run | Scr Mat Min Total 630 | . 605 25 Wait 27 | . 27 . Move 477 | . 470 7 Hop . | . . . Pick Up 8 | . 8 . Fast Attach 4 | . 4 . Attach 8 | . 4 4 Detach . | . . . Swap 15 | . 12 3 Drop 15 | . 15 . Fire 75 | . 65 10 Melee 1 | . . 1 Ram . | . . . Kick . | . . . Crush . | . . . Escape Stasis . | . . . Rewire . | . . . Trap . | . . . Miscellaneous . | . . . Route ------- -11/Scrapyard -10/Materials (discovered 4 exits: [*Mat x3] / [*Min]) -10/Mines (discovered 1 exit: [*Mat]) History --------- Turn | Location | Event 1 | -11/Scrapyard | Discovered new exit (range 0) 1 | -11/Scrapyard | Entered Materials 233 | -10/Materials | Discovered new exit (range 7) 293 | -10/Materials | Discovered new exit (range 15) 481 | -10/Materials | Discovered new exit (range 10) 869 | -10/Materials | Discovered new exit (range 14) 898 | -10/Materials | Entered Mines 899 | -10/Mines | Assembled infested the area 902 | -10/Mines | Discovered new exit (range 13) 922 | -10/Mines | Crushed by falling debris 922 | -10/Mines | Core integrity fell below 50% 937 | -10/Mines | Core integrity fell below 20% 947 | -10/Mines | Destroyed by D-53 Grenadier with Mini Grenade Launcher Last Messages --------------- 00927_ as-79067 destroyed. 00927_ S-10 Pest destroyed. 00927_ as-76497 destroyed. 00927_ as-29310 destroyed. 00927_ as-69440 destroyed. 00927_ U-05 Engineer builds a Wall. 00929_ The unstable cave ceiling collapses. 00929_ as-06383 destroyed. 00929_ as-99267 destroyed. 00929_ S-10 Pest destroyed. 00930_ Lgt. Treads destroyed. 00930_ U-05 Engineer destroyed. 00932_ D-53 Grenadier destroyed. 00934_ The unstable cave ceiling collapses. 00934_ Imp. Heat Sink destroyed. 00936_ Assault Rifle destroyed. 00939_ The unstable cave ceiling collapses. 00945_ Lgt. Assault Rifle destroyed. 00946_ /NKG>AQ4BSP1RWB XVI//O:G 00946_ The unstable cave ceiling collapses. Map ----- +----------------------------------------------------+ | ?????????????????????????????????????????????????? | | ?????????????????????????????????????????????????? | | ?????????????????????????????????????????????????? | | ?????????????????????????????????????????????????? | | ?????????????????????????????????????????????????? | | ?????????????????????????#???????????????????????? | | ????????????????????????? #??????????????????????? | | ????????????????????????? ?????????????????????? | | ????????????????????????? ?????????????????????? | | ????????????????????????? ?????????????????????? | | ?????????????????????????